fUST/lending_fUST_20240707
["ID","MTS","AMOUNT","RATE_DAILY","PERIOD"]
[331385162,1720312245116,-500.0,0.00043835,120]
[331385163,1720312245126,-1065.92,0.00043835,120]
[331385164,1720312245135,-500.0,0.00043835,120]
[331385165,1720312245144,-500.0,0.00043835,120]
[331385166,1720312245156,-500.0,0.00043835,120]
[331385167,1720312245165,-500.0,0.00043835,120]
[331385168,1720312245175,-500.0,0.00043835,120]
[331385169,1720312245184,-504.03209099,0.00043835,120]
[331385170,1720312245194,-500.0,0.00043835,120]
[331385171,1720312245203,-500.0,0.00043835,120]
[331385172,1720312245213,-500.0,0.00043835,120]
[331385173,1720312245222,-504.36591315,0.00043835,30]
[331385174,1720312245232,-500.0,0.00043835,120]
[331385175,1720312245243,-1741.41,0.00043835,120]
[331385176,1720312245253,-500.0,0.00043835,120]
[331385177,1720312245262,-500.0,0.00043835,120]
[331385178,1720312245271,-500.0,0.00043835,120]
[331385179,1720312245280,-500.0,0.00043835,120]
[331385180,1720312245289,-513.89317114,0.00043835,120]
[331385181,1720312245299,-500.0,0.00043835,120]
[331385182,1720312245308,-502.5095725,0.00043835,120]
[331385183,1720312245318,-500.0,0.00043835,120]
[331385184,1720312245327,-474.99438471,0.00043835,120]
[331385185,1720312245337,-500.0,0.00043835,120]
[331385186,1720312245346,-1189.37,0.00043835,120]
[331385187,1720312245356,-639.91453489,0.00043835,120]
[331385188,1720312245365,-500.0,0.00043835,120]
[331385189,1720312245375,-500.0,0.00043835,120]
[331385190,1720312245384,-500.0,0.00043835,120]
[331385191,1720312245396,-500.0,0.00043835,120]
[331385192,1720312245406,-500.0,0.00043835,120]
[331385193,1720312245415,-304.49617687,0.00043835,120]
[331385194,1720312245424,-500.0,0.00043835,120]
[331385195,1720312245433,-500.0,0.00043835,120]
[331385196,1720312245443,-500.0,0.00043835,120]
[331385197,1720312245452,-500.0,0.00043835,120]
[331385198,1720312245462,-500.0,0.00043835,120]
[331385199,1720312245472,-815.55,0.00043835,120]
[331385200,1720312245481,-500.0,0.00043835,120]
[331385201,1720312245491,-1679.86,0.00043835,120]
[331385202,1720312245501,-500.0,0.00043835,120]
[331385203,1720312245512,-500.0,0.00043835,120]
[331385204,1720312245522,-500.21922042,0.00043835,120]
[331385205,1720312245532,-844.82,0.00043835,120]
[331385206,1720312245544,-500.0,0.00043835,120]
[331385207,1720312245554,-564.97,0.00043835,120]
[331385208,1720312245564,-500.0,0.00043835,120]
[331385209,1720312245575,-500.0,0.00043835,120]
[331385210,1720312245585,-544.15,0.00043835,120]
[331385211,1720312245594,-959.76,0.00043835,120]
[331385212,1720312245604,-1297.58,0.00043835,120]
[331385213,1720312245613,-500.0,0.00043835,120]
[331385214,1720312245623,-1090.22,0.00043835,120]
[331385215,1720312245632,-500.0,0.00043835,120]
[331385216,1720312245641,-500.0,0.00043835,120]
[331385217,1720312245651,-500.0,0.00043835,120]
[331385218,1720312245660,-500.0,0.00043835,120]
[331385219,1720312245670,-502.60302224,0.00043835,120]
[331385220,1720312245679,-500.0,0.00043835,120]
[331385221,1720312245689,-500.0,0.00043835,120]
[331385222,1720312245699,-500.0,0.00043835,120]
[331385223,1720312245708,-500.0,0.00043835,120]
[331385224,1720312245717,-1360.1,0.00043835,120]
[331385225,1720312245727,-731.34,0.00043835,120]
[331385226,1720312245736,-500.0,0.00043835,120]
[331385227,1720312245745,-500.0,0.00043835,120]
[331385228,1720312245755,-500.0,0.00043835,120]
[331385229,1720312245764,-500.0,0.00043835,120]
[331385230,1720312245774,-500.0,0.00043835,120]
[331385231,1720312245783,-500.0,0.00043835,120]
[331385232,1720312245792,-500.0,0.00043835,120]
[331385233,1720312245802,-500.0,0.00043835,120]
[331385234,1720312245811,-500.0,0.00043835,120]
[331385235,1720312245823,-500.0,0.00043835,120]
[331385236,1720312245832,-527.98214124,0.00043835,120]
[331385237,1720312245841,-500.0,0.00043835,120]
[331385238,1720312245850,-500.0,0.00043835,120]
[331385239,1720312245859,-500.0,0.00043835,120]
[331385240,1720312245868,-512.15369897,0.00043835,120]
[331385241,1720312245877,-1170.99,0.00043835,120]
[331385242,1720312245887,-500.0,0.00043835,120]
[331385243,1720312245896,-17957.62,0.00043835,120]
[331385244,1720312245905,-500.0,0.00043835,120]
[331385245,1720312245914,-500.0,0.00043835,120]
[331385246,1720312245923,-2162.33,0.00043835,120]
[331385247,1720312245933,-500.0,0.00043835,120]
[331385248,1720312245942,-2155.79,0.00043835,120]
[331385249,1720312245951,-990.62,0.00043835,120]
[331385250,1720312245961,-500.0,0.00043835,120]
[331385251,1720312245970,-500.0,0.00043835,120]
[331385252,1720312245979,-500.0,0.00043835,120]
[331385253,1720312245989,-500.0,0.00043835,120]
[331385254,1720312245998,-500.0,0.00043835,120]
[331385255,1720312246007,-500.0,0.00043835,120]
[331385256,1720312246017,-500.0,0.00043835,120]
[331385257,1720312246026,-500.0,0.00043835,120]
[331385258,1720312246035,-500.0,0.00043835,120]
[331385259,1720312246044,-500.0,0.00043835,120]
[331385260,1720312246054,-692.59,0.00043835,120]
[331385261,1720312246063,-500.0,0.00043835,120]
[331385262,1720312246079,-617.28469923,0.00043835,120]
[331385263,1720312246087,-501.74054938,0.00043835,120]
[331385264,1720312246096,-760.13,0.00043835,120]
[331385265,1720312246105,-500.0,0.00043835,120]
[331385266,1720312246114,-500.0,0.00043835,120]
[331385267,1720312246123,-500.0,0.00043835,120]
[331385268,1720312246132,-519.0389018,0.00043835,120]
[331385269,1720312246142,-500.0,0.00043835,120]
[331385270,1720312246151,-872.41,0.00043835,120]
[331385271,1720312246163,-1274.08,0.00043835,120]
[331385272,1720312246173,-500.0,0.00043835,120]
[331385273,1720312246183,-525.25184129,0.00043835,120]
[331385274,1720312246192,-500.0,0.00043835,120]
[331385275,1720312246201,-19633.38,0.00043835,120]
[331385276,1720312246211,-509.39982361,0.00043835,120]
[331385277,1720312246220,-500.0,0.00043835,120]
[331385278,1720312246229,-501.47314881,0.00043835,120]
[331385279,1720312246238,-500.0,0.00043835,120]
[331385280,1720312246247,-500.0,0.00043835,120]
[331385281,1720312246256,-500.0,0.00043835,120]
[331385282,1720312246266,-806.21,0.00043835,120]
[331385283,1720312246276,-553.73161262,0.00043835,120]
[331385284,1720312246285,-500.0,0.00043835,120]
[331385285,1720312246296,-500.0,0.00043835,120]
[331385286,1720312246306,-500.0,0.00043835,120]
[331385287,1720312246315,-834.54,0.00043835,120]
[331385291,1720312246328,-555.67,0.00043835,120]
[331385294,1720312246337,-441.00986775,0.00043835,120]
[331385298,1720312246346,-500.0,0.00043835,120]
[331385301,1720312246356,-500.0,0.00043835,120]
[331385306,1720312246366,-500.0,0.00043835,120]
[331385311,1720312246375,-886.97,0.00043835,120]
[331385313,1720312246383,-500.0,0.00043835,120]
[331385315,1720312246392,-500.39453439,0.00043835,120]
[331385316,1720312246401,-868.77,0.00043835,120]
[331385317,1720312246411,-500.0,0.00043835,120]
[331385318,1720312246420,-997.77,0.00043835,120]
[331385320,1720312246429,-582.35280385,0.00043835,120]
[331385322,1720312246438,-500.0,0.00043835,120]
[331385324,1720312246447,-1022.9,0.00043835,120]
[331385326,1720312246456,-500.0,0.00043835,120]
[331385328,1720312246465,-531.09889853,0.00043835,120]
[331385330,1720312246475,-500.0,0.00043835,120]
[331385332,1720312246484,-686.48,0.00043835,120]
[331385333,1720312246493,-500.0,0.00043835,120]
[331385335,1720312246502,-1830.01,0.00043835,120]
[331385336,1720312246511,-3272.31,0.00043835,120]
[331385338,1720312246520,-500.0,0.00043835,120]
[331385340,1720312246529,-500.0,0.00043835,120]
[331385342,1720312246540,-500.0,0.00043835,120]
[331385344,1720312246549,-500.0,0.00043835,120]
[331385346,1720312246559,-500.0,0.00043835,120]
[331385348,1720312246568,-606.21181445,0.00043835,120]
[331385350,1720312246578,-500.0,0.00043835,120]
[331385352,1720312246587,-500.0,0.00043835,120]
[331385353,1720312246596,-500.0,0.00043835,120]
[331385355,1720312246605,-500.0,0.00043835,120]
[331385357,1720312246614,-500.0,0.00043835,120]
[331385359,1720312246623,-500.81581218,0.00043835,120]
[331385360,1720312246632,-500.0,0.00043835,120]
[331385361,1720312246641,-500.0,0.00043835,2]
[331385362,1720312246649,-800.53,0.00043835,120]
[331385363,1720312246658,-500.0,0.00043835,120]
[331385364,1720312246667,-764.61,0.00043835,120]
[331385365,1720312246676,-500.0,0.00043835,120]
[331385366,1720312246793,-500.0,0.00043835,120]
[331385367,1720312246803,-500.0,0.00043835,120]
[331385368,1720312246812,-500.0,0.00043835,120]
[331385369,1720312246823,-500.0,0.00043835,120]
[331385370,1720312246832,-500.0,0.00043835,120]
[331385371,1720312246841,-515.08,0.00043835,120]
[331385372,1720312246852,-500.0,0.00043835,120]
[331385373,1720312246862,-500.0,0.00043835,7]
[331385374,1720312246871,-500.0,0.00043835,120]
[331385375,1720312246880,-510.96532096,0.00043835,120]
[331385376,1720312246888,-652.59,0.00043835,120]
[331385377,1720312246898,-500.0,0.00043835,120]
[331385378,1720312246907,-539.31,0.00043835,120]
[331385379,1720312246916,-500.0,0.00043835,120]
[331385380,1720312246926,-526.87418182,0.00043835,120]
[331385381,1720312246935,-3819.92,0.00043835,120]
[331385382,1720312246944,-500.0,0.00043835,120]
[331385383,1720312246953,-1472.32,0.00043835,7]
[331385384,1720312246962,-500.0,0.00043835,120]
[331385385,1720312246972,-500.0,0.00043835,120]
[331385386,1720312246984,-500.0,0.00043835,120]
[331385387,1720312246994,-2352.27,0.00043835,120]
[331385388,1720312247003,-529.59,0.00043835,120]
[331385389,1720312247012,-501.16007797,0.00043835,120]
[331385390,1720312247021,-500.0,0.00043835,120]
[331385391,1720312247030,-500.0,0.00043835,120]
[331385392,1720312247040,-500.0,0.00043835,120]
[331385393,1720312247049,-500.0,0.00043835,120]
[331385394,1720312247058,-500.0,0.00043835,120]
[331385395,1720312247067,-777.74,0.00043835,120]
[331385396,1720312247080,-500.0,0.00043835,120]
[331385397,1720312247089,-500.0,0.00043835,120]
[331385398,1720312247098,-500.0,0.00043835,120]
[331385399,1720312247107,-500.0,0.00043835,120]
[331385400,1720312247117,-780.73,0.00043835,120]
[331385401,1720312247126,-500.0,0.00043835,120]
[331385402,1720312247135,-500.0,0.00043835,120]
[331385403,1720312247144,-500.0,0.00043835,120]
[331385404,1720312247157,-500.0,0.00043835,120]
[331385405,1720312247167,-1294.67,0.00043835,120]
[331385406,1720312247176,-500.0,0.00043835,120]
[331385407,1720312247186,-500.0,0.00043835,120]
[331385408,1720312247195,-500.0,0.00043835,120]
[331385409,1720312247204,-671.8,0.00043835,120]
[331385410,1720312247213,-500.0,0.00043835,120]
[331385411,1720312247222,-2429.19,0.00043835,120]
[331385412,1720312247232,-2174.43,0.00043835,120]
[331385413,1720312247241,-333.50486739,0.00043835,120]
[331385414,1720312247251,-6995.33,0.00043835,120]
[331385415,1720312247260,-500.0,0.00043835,120]
[331385417,1720312247269,-711.26,0.00043835,120]
[331385419,1720312247279,-1875.52,0.00043835,120]
[331385420,1720312247289,-500.0,0.00043835,120]
[331385421,1720312247298,-1180.04,0.00043835,120]
[331385422,1720312247307,-500.6,0.00043835,120]
[331385423,1720312247316,-23811.2,0.00043835,120]
[331385424,1720312247329,-500.0,0.00043835,120]
[331385425,1720312247340,-500.0,0.00043835,120]
[331385426,1720312247349,-1990.29,0.00043835,120]
[331385427,1720312247359,-507.36718383,0.00043835,120]
[331385428,1720312247367,-500.0,0.00043835,120]
[331385429,1720312247377,-668.62,0.00043835,120]
[331385430,1720312247387,-500.0,0.00043835,120]
[331385431,1720312247396,-500.0,0.00043835,120]
[331385432,1720312247405,-500.0,0.00043835,120]
[331385433,1720312247414,-1014.07,0.00043835,120]
[331385434,1720312247423,-197.22880303,0.00043835,120]
[331385435,1720312247432,-500.0,0.00043835,120]
[331385436,1720312247442,-500.0,0.00043835,120]
[331385437,1720312247451,-2445.93,0.00043835,120]
[331385438,1720312247459,-500.0,0.00043835,120]
[331385439,1720312247469,-1365.67,0.00043835,120]
[331385440,1720312247478,-534.87,0.00043835,120]
[331385441,1720312247486,-241.9411708,0.00043835,120]
[331385442,1720312247495,-500.0,0.00043835,120]
[331385443,1720312247504,-500.0,0.00043835,120]
[331385444,1720312247513,-500.0,0.00043835,120]
[331385445,1720312247522,-330.8532254,0.00043835,120]
[331385446,1720312247531,-500.0,0.00043835,120]
[331385447,1720312247542,-500.0,0.00043835,120]
[331385448,1720312247551,-259.18952034,0.00043835,120]
[331385449,1720312247559,-693.64,0.00043835,120]
[331385450,1720312247568,-500.0,0.00043835,120]
[331385451,1720312247579,-67758.47,0.00043835,120]
[331385452,1720312247588,-500.0,0.00043835,120]
[331385453,1720312247597,-500.0,0.00043835,120]
[331385455,1720312247607,-627.2,0.00043835,120]
[331385456,1720312247616,-800.11,0.00043835,120]
[331385458,1720312247625,-500.0,0.00043835,120]
[331385459,1720312247634,-5309.62,0.00043835,120]
[331385461,1720312247644,-647.33821386,0.00043835,120]
[331385462,1720312247653,-1034.58,0.00043835,120]
[331385463,1720312247662,-1285.7,0.00043835,120]
[331385464,1720312247671,-508.27,0.00043835,120]
[331385465,1720312247681,-500.0,0.00043835,120]
[331385466,1720312247690,-500.0,0.00043835,120]
[331385467,1720312247699,-1752.72,0.00043835,120]
[331385468,1720312247709,-500.0,0.00043835,120]
[331385469,1720312247718,-500.0,0.00043835,120]
[331385470,1720312247727,-561.53,0.00043835,120]
[331385471,1720312247736,-561.53,0.00043835,120]
[331385472,1720312247746,-500.0,0.00043835,120]
[331385473,1720312247755,-561.53,0.00043835,120]
[331385474,1720312247765,-561.53,0.00043835,120]
[331385475,1720312247774,-561.53,0.00043835,120]
[331385476,1720312247783,-561.53,0.00043835,120]
[331385477,1720312247792,-10023.87,0.00043835,120]
[331385478,1720312247801,-11051.01,0.00043835,120]
[331385479,1720312247810,-11970.34,0.00043835,120]
[331385480,1720312247822,-501.4825555,0.00043835,120]
[331385481,1720312247833,-500.0,0.00043835,120]
[331385482,1720312247842,-390.5733644,0.00043835,120]
[331385483,1720312247851,-709.39,0.00043835,120]
[331385484,1720312247860,-561.53,0.00043835,120]
[331385485,1720312247873,-500.0,0.00043835,120]
[331385486,1720312247882,-500.0,0.00043835,120]
[331385487,1720312247893,-3858.98,0.00043835,120]
[331385488,1720312247902,-500.0,0.00043835,120]
[331385489,1720312247912,-500.0,0.00043835,120]
[331385490,1720312247922,-500.0,0.00043835,120]
[331385491,1720312247931,-500.0,0.00043835,20]
[331385492,1720312247940,-500.0,0.00043835,120]
[331385493,1720312247949,-500.0,0.00043835,120]
[331385494,1720312247959,-500.0,0.00043835,120]
[331385495,1720312247968,-585.67624313,0.00043835,120]
[331385496,1720312247978,-500.0,0.00043835,120]
[331385497,1720312247986,-9627.04,0.00043835,120]
[331385498,1720312247997,-775.71,0.00043835,120]
[331385499,1720312248007,-500.0,0.00043835,120]
[331385500,1720312248018,-500.0,0.00043835,120]
[331385501,1720312248029,-500.0,0.00043835,120]
[331385502,1720312248038,-500.0,0.00043835,120]
[331385503,1720312248047,-11545.33,0.00043835,120]
[331385504,1720312248057,-935.61,0.00043835,120]
[331385505,1720312248067,-500.0,0.00043835,120]
[331385506,1720312248080,-500.0,0.00043835,120]
[331385507,1720312248096,-500.0,0.00043835,120]
[331385508,1720312248106,-500.0,0.00043835,120]
[331385509,1720312248116,-500.0,0.00043835,120]
[331385510,1720312248127,-507.32173901,0.00043835,120]
[331385511,1720312248137,-5688.11,0.00043835,120]
[331385512,1720312248147,-500.0,0.00043835,120]
[331385513,1720312248156,-4717.24,0.00043835,120]
[331385514,1720312248166,-500.0,0.00043835,120]
[331385515,1720312248176,-4429.83,0.00043835,120]
[331385516,1720312248186,-4266.09,0.00043835,120]
[331385517,1720312248195,-500.0,0.00043835,120]
[331385518,1720312248205,-500.0,0.00043835,120]
[331385519,1720312248214,-500.0,0.00043835,120]
[331385520,1720312248223,-500.0,0.00043835,120]
[331385521,1720312248233,-500.0,0.00043835,120]
[331385522,1720312248242,-500.0,0.00043835,120]
[331385523,1720312248251,-501.99186785,0.00043835,120]
[331385524,1720312248263,-500.0,0.00043835,120]
[331385525,1720312248272,-500.0,0.00043835,120]
[331385526,1720312248281,-500.0,0.00043835,120]
[331385527,1720312248290,-500.0,0.00043835,120]
[331385528,1720312248300,-490.59944579,0.00043835,120]
[331385529,1720312248309,-2704.38,0.00043835,120]
[331385530,1720312248319,-500.0,0.00043835,120]
[331385531,1720312248329,-505.36,0.00043835,120]
[331385532,1720312248338,-500.0,0.00043835,120]
[331385533,1720312248347,-500.0,0.00043835,120]
[331385534,1720312248356,-500.0,0.00043835,120]
[331385535,1720312248366,-1021.51,0.00043835,120]
[331385536,1720312248375,-1541.47,0.00043835,120]
[331385537,1720312248384,-500.0,0.00043835,120]
[331385538,1720312248393,-500.0,0.00043835,120]
[331385539,1720312248403,-748.13,0.00043835,120]
[331385540,1720312248412,-500.0,0.00043835,120]
[331385541,1720312248421,-500.0,0.00043835,120]
[331385542,1720312248431,-924.03,0.00043835,120]
[331385543,1720312248440,-500.0,0.00043835,120]
[331385544,1720312248449,-500.0,0.00043835,120]
[331385545,1720312248459,-500.0,0.00043835,120]
[331385546,1720312248468,-500.0,0.00043835,120]
[331385547,1720312248477,-500.0,0.00043835,120]
[331385548,1720312248486,-500.0,0.00043835,120]
[331385549,1720312248496,-500.0,0.00043835,120]
[331385550,1720312248505,-500.0,0.00043835,120]
[331385551,1720312248516,-500.0,0.00043835,120]
[331385552,1720312248525,-500.0,0.00043835,120]
[331385553,1720312248536,-500.0,0.00043835,120]
[331385554,1720312248545,-500.0,0.00043835,120]
[331385555,1720312248555,-500.0,0.00043835,120]
[331385556,1720312248565,-500.0,0.00043835,120]
[331385557,1720312248574,-500.0,0.00043835,120]
[331385558,1720312248584,-500.0,0.00043835,120]
[331385559,1720312248593,-500.0,0.00043835,120]
[331385560,1720312248603,-500.0,0.00043835,120]
[331385561,1720312248612,-502.9229916,0.00043835,120]
[331385562,1720312248622,-1950.6,0.00043835,120]
[331385563,1720312248733,-500.0,0.00043835,120]
[331385564,1720312248746,-500.0,0.00043835,120]
[331385565,1720312248757,-1170.79,0.00043835,120]
[331385566,1720312248766,-500.0,0.00043835,120]
[331385567,1720312248776,-500.0,0.00043835,120]
[331385568,1720312248786,-254.94,0.00043835,120]
[331385569,1720312248795,-500.0,0.00043835,120]
[331385570,1720312248804,-500.0,0.00043835,120]
[331385571,1720312248814,-500.0,0.00043835,120]
[331385572,1720312248825,-500.0,0.00043835,120]
[331385573,1720312248835,-500.0,0.00043835,120]
[331385574,1720312248844,-500.0,0.00043835,120]
[331385575,1720312248852,-500.0,0.00043835,120]
[331385576,1720312248862,-500.0,0.00043835,120]
[331385577,1720312248871,-500.0,0.00043835,120]
[331385578,1720312248881,-500.0,0.00043835,120]
[331385579,1720312248891,-500.0,0.00043835,120]
[331385580,1720312248902,-500.0,0.00043835,120]
[331385581,1720312248912,-500.0,0.00043835,120]
[331385582,1720312248924,-884.56,0.00043835,120]
[331385583,1720312248935,-500.0,0.00043835,120]
[331385584,1720312248946,-844.26,0.00043835,120]
[331385585,1720312248957,-12793.66,0.00043835,120]
[331385586,1720312248967,-500.0,0.00043835,120]
[331385587,1720312248976,-500.0,0.00043835,120]
[331385588,1720312248986,-500.0,0.00043835,120]
[331385589,1720312248995,-500.0,0.00043835,120]
[331385590,1720312249005,-500.0,0.00043835,120]
[331385591,1720312249016,-896.63,0.00043835,120]
[331385592,1720312249026,-500.0,0.00043835,120]
[331385593,1720312249037,-500.0,0.00043835,120]
[331385594,1720312249048,-600.0,0.00043835,120]
[331385595,1720312249057,-500.0,0.00043835,120]
[331385596,1720312249067,-618.83,0.00043835,120]
[331385597,1720312249080,-500.0,0.00043835,120]
[331385598,1720312249091,-500.0,0.00043835,120]
[331385599,1720312249101,-4204.54,0.00043835,120]
[331385600,1720312249111,-500.0,0.00043835,120]
[331385601,1720312249121,-502.98183692,0.00043835,2]
[331385602,1720312249131,-500.0,0.00043835,120]
[331385603,1720312249141,-500.0,0.00043835,120]
[331385604,1720312249151,-193.83923262,0.00043835,120]
[331385605,1720312249162,-500.0,0.00043835,120]
[331385606,1720312249172,-500.0,0.00043835,120]
[331385607,1720312249182,-2118.44,0.00043835,120]
[331385608,1720312249191,-500.0,0.00043835,120]
[331385609,1720312249200,-500.0,0.00043835,120]
[331385610,1720312249210,-500.0,0.00043835,120]
[331385611,1720312249220,-500.0,0.00043835,120]
[331385612,1720312249229,-984.09,0.00043835,120]
[331385613,1720312249238,-500.0,0.00043835,120]
[331385614,1720312249247,-500.0,0.00043835,120]
[331385615,1720312249257,-500.0,0.00043835,120]
[331385616,1720312249266,-7734.13,0.00043835,21]
[331385617,1720312249276,-500.0,0.00043835,120]
[331385618,1720312249285,-500.0,0.00043835,120]
[331385619,1720312249295,-500.0,0.00043835,120]
[331385620,1720312249304,-500.0,0.00043835,120]
[331385621,1720312249313,-541.72377519,0.00043835,120]
[331385622,1720312249324,-500.0,0.00043835,120]
[331385623,1720312249333,-6948.55,0.00043835,120]
[331385624,1720312249342,-500.0,0.00043835,120]
[331385625,1720312249352,-445.12637997,0.00043835,120]
[331385626,1720312249362,-500.0,0.00043835,120]
[331385627,1720312249371,-500.0,0.00043835,120]
[331385628,1720312249380,-500.0,0.00043835,120]
[331385629,1720312249391,-500.0,0.00043835,120]
[331385630,1720312249401,-449.12506365,0.00043835,120]
[331385631,1720312249412,-507.79121836,0.00043835,120]
[331385632,1720312249423,-500.0,0.00043835,120]
[331385633,1720312249432,-1933.54,0.00043835,21]
[331385634,1720312249442,-500.0,0.00043835,120]
[331385635,1720312249451,-509.26101303,0.00043835,120]
[331385636,1720312249461,-1280.73,0.00043835,120]
[331385637,1720312249470,-11105.94,0.00043835,120]
[331385638,1720312249479,-500.0,0.00043835,120]
[331385639,1720312249488,-500.0,0.00043835,120]
[331385640,1720312249497,-500.0,0.00043835,120]
[331385641,1720312249507,-500.0,0.00043835,120]
[331385642,1720312249516,-500.0,0.00043835,120]
[331385643,1720312249526,-525.58707619,0.00043835,120]
[331385644,1720312249537,-500.0,0.00043835,120]
[331385645,1720312249546,-290.34487166,0.00043835,120]
[331385646,1720312249556,-500.0,0.00043835,120]
[331385647,1720312249566,-500.0,0.00043835,120]
[331385648,1720312249575,-500.0,0.00043835,120]
[331385649,1720312249585,-772.24,0.00043835,120]
[331385650,1720312249594,-500.0,0.00043835,120]
[331385651,1720312249604,-6036.83,0.00043835,120]
[331385652,1720312249613,-500.0,0.00043835,120]
[331385653,1720312249623,-500.0,0.00043835,120]
[331385654,1720312249632,-500.0,0.00043835,120]
[331385655,1720312249642,-500.0,0.00043835,120]
[331385656,1720312249653,-500.0,0.00043835,120]
[331385657,1720312249663,-500.0,0.00043835,120]
[331385658,1720312249674,-500.0,0.00043835,120]
[331385659,1720312249684,-500.0,0.00043835,120]
[331385660,1720312249696,-500.0,0.00043835,120]
[331385661,1720312249706,-500.0,0.00043835,120]
[331385662,1720312249715,-500.0,0.00043835,120]
[331385663,1720312249725,-500.0,0.00043835,120]
[331385664,1720312249735,-500.0,0.00043835,120]
[331385665,1720312249747,-500.0,0.00043835,120]
[331385666,1720312249758,-500.0,0.00043835,120]
[331385667,1720312249768,-500.0,0.00043835,120]
[331385668,1720312249777,-503.24890876,0.00043835,120]
[331385669,1720312249787,-2113.87,0.00043835,120]
[331385670,1720312249797,-500.0,0.00043835,120]
[331385671,1720312249807,-500.0,0.00043835,120]
[331385672,1720312249818,-500.0,0.00043835,120]
[331385673,1720312249828,-500.0,0.00043835,120]
[331385674,1720312249838,-500.0,0.00043835,120]
[331385675,1720312249847,-500.0,0.00043835,120]
[331385676,1720312249857,-523.93085454,0.00043835,120]
[331385677,1720312249866,-500.0,0.00043835,120]
[331385678,1720312249875,-15042.94,0.00043835,120]
[331385679,1720312249885,-539.69634998,0.00043835,120]
[331385680,1720312249894,-500.0,0.00043835,120]
[331385681,1720312249903,-500.0,0.00043835,120]
[331385682,1720312249913,-500.0,0.00043835,120]
[331385683,1720312249922,-500.0,0.00043835,120]
[331385684,1720312249931,-887.89,0.00043835,120]
[331385685,1720312249941,-500.0,0.00043835,120]
[331385686,1720312249950,-887.89,0.00043835,120]
[331385687,1720312249959,-500.0,0.00043835,120]
[331385688,1720312249968,-500.0,0.00043835,120]
[331385689,1720312249978,-500.0,0.00043835,120]
[331385690,1720312249987,-410.64477722,0.00043835,120]
[331385691,1720312249997,-500.0,0.00043835,120]
[331385692,1720312250007,-500.0,0.00043835,120]
[331385693,1720312250016,-500.0,0.00043835,120]
[331385694,1720312250026,-500.0,0.00043835,120]
[331385695,1720312250035,-500.0,0.00043835,120]
[331385696,1720312250045,-500.0,0.00043835,120]
[331385697,1720312250056,-500.0,0.00043835,120]
[331385698,1720312250066,-500.0,0.00043835,120]
[331385699,1720312250081,-500.0,0.00043835,120]
[331385700,1720312250093,-500.0,0.00043835,120]
[331385701,1720312250103,-500.0,0.00043835,120]
[331385702,1720312250113,-500.0,0.00043835,120]
[331385703,1720312250124,-500.0,0.00043835,120]
[331385704,1720312250134,-500.0,0.00043835,120]
[331385705,1720312250143,-500.0,0.00043835,120]